fUSD/lending_fUSD_20260408
["ID","MTS","AMOUNT","RATE_DAILY","PERIOD"]
[420028087,1775625041129,-500.0,0.00013698,2]
[420028088,1775625041139,-500.0,0.00013698,2]
[420028089,1775625041149,-500.0,0.00013698,2]
[420028090,1775625041160,-500.0,0.00013698,2]
[420028091,1775625041170,-500.0,0.00013698,2]
[420028092,1775625041181,-500.0,0.00013698,2]
[420028093,1775625041194,-500.0,0.00013698,2]
[420028094,1775625041204,-500.0,0.00013698,2]
[420028095,1775625041218,-500.0,0.00013698,2]
[420028096,1775625041229,-500.0,0.00013698,2]
[420028097,1775625041239,-500.0,0.00013698,2]
[420028098,1775625041249,-500.0,0.00013698,2]
[420028099,1775625041259,-500.0,0.00013698,2]
[420028100,1775625041270,-499.6872898,0.00013698,2]
[420028101,1775625041279,-500.0,0.00013698,2]
[420028102,1775625041290,-500.0,0.00013698,2]
[420028103,1775625041301,-500.0,0.00013698,2]
[420028104,1775625041311,-500.0,0.00013698,2]
[420028105,1775625041322,-500.0,0.00013698,2]
[420028106,1775625041332,-500.0,0.00013698,2]
[420028107,1775625041342,-500.0,0.00013698,2]
[420028108,1775625041353,-419.40847116,0.00013698,2]
[420028109,1775625041363,-500.0,0.00013698,2]
[420028110,1775625041374,-500.0,0.00013698,2]
[420028111,1775625041384,-500.45174561,0.00013698,2]
[420028112,1775625041394,-500.0,0.00013698,2]
[420028113,1775625041404,-500.0,0.00013698,2]
[420028114,1775625041415,-500.0,0.00013698,2]
[420028115,1775625041425,-500.0,0.00013698,2]
[420028116,1775625041436,-500.0,0.00013698,2]
[420028117,1775625041446,-500.0,0.00013698,2]
[420028118,1775625041456,-500.0,0.00013698,2]
[420028119,1775625041466,-500.0,0.00013698,2]
[420028120,1775625041476,-500.0,0.00013698,2]
[420028121,1775625041486,-500.0,0.00013698,2]
[420028122,1775625041497,-500.0,0.00013698,2]
[420028123,1775625041507,-500.0,0.00013698,2]
[420028124,1775625041517,-500.0,0.00013698,2]
[420028125,1775625041528,-500.0,0.00013698,2]
[420028126,1775625041538,-406.01852309,0.00013698,2]
[420028127,1775625041549,-500.0,0.00013698,2]
[420028128,1775625041561,-500.0,0.00013698,2]
[420028129,1775625041571,-500.0,0.00013698,2]
[420028130,1775625041582,-500.0,0.00013698,2]
[420028131,1775625041592,-500.0,0.00013698,2]
[420028132,1775625041603,-500.0,0.00013698,2]
[420028133,1775625041614,-500.0,0.00013698,2]
[420028134,1775625041624,-500.0,0.00013698,2]
[420028135,1775625041636,-500.0,0.00013698,2]
[420028136,1775625041646,-500.0,0.00013698,2]
[420028137,1775625041656,-500.0,0.00013698,2]
[420028138,1775625041667,-500.0,0.00013698,2]
[420028139,1775625041677,-500.0,0.00013698,2]
[420028140,1775625041688,-500.0,0.00013698,2]
[420028141,1775625041700,-500.0,0.00013698,2]
[420028142,1775625041712,-500.0,0.00013698,2]
[420028143,1775625041723,-500.0,0.00013698,2]
[420028144,1775625041733,-500.0,0.00013698,2]
[420028145,1775625041743,-500.0,0.00013698,2]
[420028146,1775625041754,-500.0,0.00013698,2]
[420028147,1775625041764,-500.0,0.00013698,2]
[420028148,1775625041775,-500.0,0.00013698,2]
[420028149,1775625041785,-500.0,0.00013698,2]
[420028150,1775625041796,-542.71692042,0.00013698,2]
[420028151,1775625041806,-500.0,0.00013698,2]
[420028152,1775625041817,-500.0,0.00013698,2]
[420028153,1775625041827,-500.0,0.00013698,2]
[420028154,1775625041838,-500.0,0.00013698,2]
[420028155,1775625041848,-500.0,0.00013698,2]
[420028156,1775625041858,-500.0,0.00013698,2]
[420028157,1775625041868,-562.38643831,0.00013698,2]
[420028158,1775625041878,-500.0,0.00013698,2]
[420028159,1775625041888,-500.0,0.00013698,2]
[420028160,1775625041899,-500.0,0.00013698,2]
[420028161,1775625041909,-500.0,0.00013698,2]
[420028162,1775625041919,-500.0,0.00013698,2]
[420028163,1775625041930,-500.0,0.00013698,2]
[420028164,1775625041940,-500.0,0.00013698,2]
[420028165,1775625041950,-500.0,0.00013698,2]
[420028166,1775625041961,-500.0,0.00013698,2]
[420028167,1775625041971,-500.0,0.00013698,2]
[420028168,1775625041981,-500.0,0.00013698,2]
[420028169,1775625041990,-553.39225555,0.00013698,2]
[420028170,1775625042000,-658.1,0.00013698,2]
[420028171,1775625042011,-658.1,0.00013698,2]
[420028172,1775625042020,-658.1,0.00013698,2]
[420028173,1775625042031,-658.1,0.00013698,2]
[420028174,1775625042042,-658.1,0.00013698,2]
[420028175,1775625042052,-658.1,0.00013698,2]
[420028176,1775625042063,-658.1,0.00013698,2]
[420028177,1775625042073,-658.1,0.00013698,2]
[420028178,1775625042083,-658.1,0.00013698,2]
[420028179,1775625042094,-658.1,0.00013698,2]
[420028180,1775625042103,-658.1,0.00013698,2]
[420028181,1775625042114,-500.0,0.00013698,2]
[420028182,1775625042125,-633.831471,0.00013698,2]
[420028183,1775625042136,-500.0,0.00013698,2]
[420028184,1775625042146,-500.0,0.00013698,2]
[420028185,1775625042156,-500.0,0.00013698,2]
[420028186,1775625042166,-500.0,0.00013698,2]
[420028187,1775625042176,-500.0,0.00013698,2]
[420028188,1775625042187,-500.0,0.00013698,2]
[420028189,1775625042197,-500.0,0.00013698,2]
[420028190,1775625042208,-595.48595604,0.00013698,2]
[420028191,1775625042219,-150.0,0.00013699,2]
[420028192,1775625042229,-150.0,0.00013699,2]
[420028193,1775625042240,-2138.0,0.00013699,2]
[420028194,1775625042251,-150.0,0.00013699,2]
[420028195,1775625042261,-2534.6,0.00013699,2]
[420028196,1775625042278,-166.66,0.00013699,2]
[420028197,1775625042288,-476.15,0.00013699,2]
[420028198,1775625042299,-396.8,0.00013699,2]
[420028199,1775625042310,-330.66,0.00013699,2]
[420028200,1775625042320,-275.55,0.00013699,2]
[420028201,1775625042331,-229.63,0.00013699,2]
[420028202,1775625042341,-191.36,0.00013699,2]
[420028203,1775625042351,-191.36,0.00013699,2]
[420028204,1775625042361,-765.44,0.00013699,2]
[420028205,1775625042371,-200.0,0.00013699,2]
[420028206,1775625042381,-500.0,0.00013699,2]
[420028207,1775625042393,-500.60430488,0.00013699,2]
[420028208,1775625042402,-500.27274938,0.00013699,2]
[420028209,1775625042413,-500.0,0.00013699,2]
[420028210,1775625042423,-500.0,0.00013699,2]
[420028211,1775625042434,-500.0,0.00013699,2]
[420028212,1775625042445,-500.0,0.00013699,2]
[420028213,1775625042456,-500.0,0.00013699,2]
[420028214,1775625042468,-500.0,0.00013699,2]
[420028215,1775625042478,-500.0,0.00013699,2]
[420028216,1775625042488,-500.0,0.00013699,2]
[420028217,1775625042499,-500.0,0.00013699,2]
[420028218,1775625042510,-500.0,0.00013699,2]
[420028219,1775625042521,-500.0,0.00013699,2]
[420028220,1775625042531,-516.67152996,0.00013699,2]
[420028221,1775625042540,-501.53334874,0.00013699,2]
[420028222,1775625042550,-500.0,0.00013699,2]
[420028223,1775625042560,-500.0,0.00013699,2]
[420028224,1775625042570,-503.98766467,0.00013699,2]
[420028225,1775625042581,-163.86569709,0.00013699,2]
[420028226,1775625042591,-500.0,0.00013699,2]
[420028227,1775625042602,-244.23047354,0.00013699,2]
[420028228,1775625042613,-500.0,0.00013699,2]
[420028229,1775625042622,-500.0,0.00013699,2]
[420028230,1775625042633,-500.0,0.00013699,2]
[420028231,1775625042644,-500.0,0.00013699,2]
[420028232,1775625042654,-474.64837932,0.00013699,2]
[420028233,1775625042665,-500.0,0.00013699,2]
[420028234,1775625042675,-500.0,0.00013699,2]
[420028235,1775625042686,-500.0,0.00013699,2]
[420028236,1775625042696,-164.42313659,0.00013699,2]
[420028237,1775625042705,-288.28066678,0.00013699,2]
[420028238,1775625042715,-500.0,0.00013699,2]
[420028239,1775625042725,-290.88257095,0.00013699,2]
[420028240,1775625042736,-151.02,0.00013699,2]
[420028241,1775625042746,-1000.0,0.00013699,2]
[420028242,1775625042756,-1000.0,0.00013699,15]
[420028243,1775625042766,-158.15239998,0.00013699,2]
[420028244,1775625042776,-88183.08,0.000137,2]
[420028245,1775625042787,-181.618147,0.00013745,2]
[420028246,1775625042797,-164.741758,0.00013745,7]
[420028247,1775625042807,-587.0,0.00013758,2]
[420028248,1775625042818,-2351.0,0.00013797,2]
[420028249,1775625042828,-150.0,0.00013808,2]
[420028250,1775625042837,-150.0,0.00013808,2]
[420028251,1775625042848,-150.0,0.00013808,2]
[420028253,1775625042858,-6127.51341403,0.00013814,2]
[420028255,1775625042868,-166.66,0.00013836,2]
[420028257,1775625042879,-150.0,0.0001387,2]
[420028258,1775625042888,-150.0,0.0001387,2]
[420028259,1775625042898,-8436.02256686,0.00013872,2]
[420028260,1775625042908,-150.0,0.00013907,2]
[420028261,1775625042918,-150.0,0.00013907,2]
[420028262,1775625042928,-22606.14932116,0.00013968,2]
[420028263,1775625042938,-150.0,0.00013973,2]
[420028264,1775625042948,-150.0,0.00013973,2]
[420028265,1775625042958,-166.66,0.00013973,2]
[420028266,1775625042968,-150.0,0.00013973,2]
[420028267,1775625042978,-4733.74989347,0.0001399,2]
[420028268,1775625042989,-347.788154,0.00013992,7]
[420028269,1775625042999,-1500.0,0.00014,2]
[420028270,1775625043010,-1015.28558372,0.00014016,2]
[420028271,1775625043021,-2000.0,0.00014016,2]
[420028272,1775625043033,-1393.05427862,0.00014016,2]
[420028273,1775625043044,-1037.33935184,0.00014016,2]
[420028274,1775625043054,-2000.0,0.00014016,2]
[420028275,1775625043065,-2000.0,0.00014016,2]
[420028276,1775625043077,-150.0,0.00014055,2]
[420028277,1775625043089,-150.0,0.00014055,2]
[420028279,1775625043099,-150.0,0.00014055,2]
[420028281,1775625043110,-166.66,0.0001411,2]
[420028282,1775625043122,-507.0,0.00014129,2]
[420028283,1775625043132,-150.0,0.00014137,2]
[420028285,1775625043143,-150.0,0.00014203,2]
[420028287,1775625043153,-150.0,0.00014203,2]
[420028288,1775625043164,-150.0,0.0001424,2]
[420028289,1775625043175,-150.0,0.0001424,2]
[420028290,1775625043186,-150.0,0.00014247,2]
[420028291,1775625043197,-150.0,0.00014247,2]
[420028292,1775625043207,-166.66,0.00014247,2]
[420028293,1775625043219,-1000.0,0.00014247,2]
[420028294,1775625043229,-1000.0,0.00014247,2]
[420028295,1775625043239,-242.46089406,0.00014247,2]
[420028296,1775625043249,-763.74027783,0.00014247,2]
[420028297,1775625043260,-1000.0,0.00014247,2]
[420028298,1775625043270,-1000.0,0.00014247,2]
[420028299,1775625043281,-882.1111067,0.00014247,2]
[420028300,1775625043292,-172.70630045,0.00014247,2]
[420028301,1775625043303,-1000.0,0.00014247,2]
[420028302,1775625043314,-1000.0,0.00014247,2]
[420028303,1775625043324,-8436.02256686,0.00014277,2]
[420028304,1775625043336,-186.4655,0.000143,2]
[420028305,1775625043346,-150.0,0.00014301,2]
[420028306,1775625043357,-150.0,0.00014301,2]
[420028307,1775625043368,-150.0,0.00014301,2]
[420028308,1775625043380,-150.0,0.00014315,2]
[420028309,1775625043391,-6127.51341403,0.00014335,2]
[420028310,1775625043402,-2534.6,0.00014384,2]
[420028311,1775625043412,-166.66,0.00014384,2]
[420028312,1775625043424,-150.0,0.00014425,2]
[420028313,1775625043435,-150.0,0.00014425,2]
[420028314,1775625043446,-150.0,0.00014425,2]
[420028315,1775625043458,-157.98,0.00014458,2]
[420028316,1775625043469,-150.0,0.00014466,2]
[420028317,1775625043480,-736.0,0.00014492,2]
[420028318,1775625043491,-150.0,0.00014499,2]
[420028319,1775625043502,-150.0,0.00014499,2]
[420028320,1775625043513,-2500.0,0.00014564,2]
[420028321,1775625043524,-1501.79789242,0.00014564,2]
[420028322,1775625043534,-2500.0,0.00014564,2]
[420028323,1775625043545,-490.0,0.00014609,2]
[420028324,1775625043556,-500.0,0.00014609,2]
[420028325,1775625043567,-150.0,0.0001461,2]
[420028326,1775625043577,-150.0,0.0001461,2]
[420028327,1775625043588,-2000.0,0.00014618,2]
[420028328,1775625043599,-150.0,0.0001463,2]
[420028329,1775625043610,-150.0,0.00014639,2]
[420028330,1775625043621,-151.0,0.00014662,2]
[420028331,1775625043633,-500.0,0.00014664,2]
[420028332,1775625043644,-500.0,0.00014664,2]
[420028333,1775625043656,-500.0,0.00014664,2]
[420028334,1775625043668,-500.0,0.00014664,2]
[420028335,1775625043680,-500.0,0.00014664,2]
[420028336,1775625043691,-500.0,0.00014664,2]
[420028337,1775625043703,-500.0,0.00014664,2]
[420028338,1775625043714,-500.0,0.00014664,2]
[420028339,1775625043726,-658.1,0.00014664,2]
[420028340,1775625043737,-658.1,0.00014664,2]
[420028341,1775625043750,-658.1,0.00014664,2]
[420028342,1775625043761,-658.1,0.00014664,2]
[420028343,1775625043772,-658.1,0.00014664,2]
[420028344,1775625043783,-658.1,0.00014664,2]
[420028348,1775625044195,-1500000.0,0.00014665,2]
[420028349,1775625044206,-500.0,0.00014673,2]
[420028350,1775625044217,-500.68321897,0.00014673,2]
[420028351,1775625044227,-500.0,0.00014673,2]
[420028352,1775625044237,-500.0,0.00014673,2]
[420028353,1775625044247,-500.0,0.00014673,2]
[420028354,1775625044258,-8436.02256686,0.00014683,2]
[420028355,1775625044268,-1573.0,0.0001478,2]
[420028356,1775625044277,-198.06604293,0.00014794,2]
[420028357,1775625044288,-1500.0,0.00014795,2]
[420028358,1775625044298,-1500.0,0.00014795,2]
[420028359,1775625044308,-1500.0,0.00014795,2]
[420028360,1775625044318,-1500.0,0.00014795,2]
[420028361,1775625044329,-150.0,0.00014795,2]
[420028362,1775625044339,-150.0,0.00014795,2]
[420028363,1775625044350,-150.0,0.00014795,2]
[420028364,1775625044361,-150.0,0.00014795,2]
[420028365,1775625044371,-150.0,0.00014795,2]
[420028366,1775625044381,-150.0,0.00014795,2]
[420028367,1775625044391,-150.0,0.00014795,2]
[420028368,1775625044401,-150.0,0.00014795,2]
[420028369,1775625044411,-150.0,0.00014795,2]
[420028370,1775625044422,-1500.0,0.00014795,2]
[420028371,1775625044433,-1515.29028124,0.00014795,2]
[420028372,1775625044444,-22606.14932116,0.00014815,2]
[420028373,1775625044454,-150.0,0.00014902,2]
[420028374,1775625044465,-300.0,0.00015,2]
[420028375,1775625044475,-2068.01430131,0.00015,2]
[420028376,1775625044486,-2756.92717347,0.00015,2]
[420028377,1775625044497,-1007.07827575,0.00015,2]
[420028378,1775625044506,-2534.6,0.00015068,2]
[420028379,1775625044516,-160.0,0.00015081,2]
[420028380,1775625044528,-341.138621,0.00015081,2]
[420028381,1775625044539,-522.277243,0.00015081,2]
[420028382,1775625044551,-8436.02256686,0.00015089,2]
[420028383,1775625044562,-823.0,0.00015112,2]
[420028384,1775625044572,-1003.75016468,0.00015112,2]
[420028385,1775625044582,-503.61823881,0.00015112,2]
[420028386,1775625044592,-269.91,0.00015141,2]
[420028387,1775625044603,-353.426086,0.00015151,2]
[420028388,1775625044612,-507.0,0.00015158,3]
[420028389,1775625044624,-3292.0,0.00015176,2]
[420028390,1775625044635,-1000.0,0.00015221,2]
[420028391,1775625044646,-1144.24089955,0.00015221,2]
[420028392,1775625044656,-1000.0,0.00015221,2]
[420028393,1775625044666,-2812.0,0.00015293,2]
[420028394,1775625044676,-2000.0,0.00015342,2]
[420028395,1775625044687,-2002.28581045,0.00015342,2]
[420028396,1775625044697,-2000.0,0.00015342,2]
[420028397,1775625044707,-451.88193642,0.00015342,2]
[420028398,1775625044717,-503.63625007,0.00015342,2]
[420028399,1775625044728,-376.149699,0.00015358,7]
[420028400,1775625044738,-171.98,0.00015486,2]
[420028401,1775625044748,-8436.02256686,0.00015494,2]
[420028402,1775625044760,-207.8989,0.000156,2]
[420028403,1775625044770,-1000.64224084,0.00015614,2]
[420028404,1775625044780,-1059.6666609,0.00015614,2]
[420028405,1775625044790,-1084.79023822,0.00015614,2]
[420028406,1775625044802,-1069.42027345,0.00015614,2]
[420028407,1775625044812,-1816.81611167,0.00015614,2]
[420028408,1775625044822,-2000.0,0.00015623,2]
[420028409,1775625044832,-22606.14932116,0.00015663,2]
[420028410,1775625044842,-5668.50234792,0.000157,2]
[420028411,1775625044853,-88183.08,0.000157,2]
[420028412,1775625044865,-2534.6,0.00015753,2]
[420028413,1775625044874,-1500.0,0.00015768,2]
[420028414,1775625044885,-1500.0,0.00015768,2]
[420028415,1775625044894,-500.0,0.00015808,2]
[420028416,1775625044904,-500.0,0.00015808,2]
[420028417,1775625044914,-396.4808442,0.00015808,2]
[420028418,1775625044935,-500.0,0.00015839,2]
[420028419,1775625044948,-658.1,0.00015839,2]
[420028420,1775625044958,-113846.4586908,0.0001584,2]
[420028421,1775625044969,-578.20924308,0.00015848,2]
[420028422,1775625044980,-200.0,0.00015848,2]
[420028423,1775625044991,-1235.18214925,0.00015848,2]
[420028424,1775625045001,-181.08010149,0.00015848,2]
[420028425,1775625045013,-623.58710448,0.00015848,2]
[420028426,1775625045024,-500.0,0.00015848,2]
[420028427,1775625045036,-1000.0,0.00015848,2]
[420028428,1775625045049,-1000.0,0.00015848,2]
[420028429,1775625045060,-292.18486671,0.00015848,2]
[420028430,1775625045071,-151.0,0.00015848,2]
[420028431,1775625045082,-743.50770149,0.00015848,2]
[420028432,1775625045093,-591.41950389,0.00015848,2]
[420028433,1775625045103,-174.61919141,0.00015848,2]
[420028434,1775625045114,-505.73279232,0.00015848,2]
[420028435,1775625045124,-170.0,0.00015848,2]
[420028436,1775625045136,-170.0,0.00015848,2]
[420028437,1775625045147,-170.0,0.00015848,2]
[420028438,1775625045158,-170.0,0.00015848,2]
[420028439,1775625045170,-170.0,0.00015848,2]
[420028440,1775625045180,-170.0,0.00015848,2]
[420028441,1775625045191,-170.0,0.00015848,2]
[420028442,1775625045201,-170.0,0.00015848,2]
[420028443,1775625045211,-170.0,0.00015848,2]
[420028444,1775625045222,-170.0,0.00015848,2]
[420028445,1775625045232,-170.0,0.00015848,2]
[420028446,1775625045243,-170.0,0.00015848,2]
[420028447,1775625045254,-170.0,0.00015848,2]
[420028448,1775625045264,-170.0,0.00015848,2]
[420028449,1775625045276,-170.0,0.00015848,2]
[420028450,1775625045287,-2812.0,0.00015859,2]
[420028451,1775625045297,-1252.0,0.00015871,2]
[420028452,1775625045308,-500.0,0.0001589,2]
[420028453,1775625045318,-500.0,0.0001589,2]
[420028454,1775625045331,-177.05503597,0.0001589,2]
[420028455,1775625045341,-2500.0,0.0001589,2]
[420028456,1775625045352,-1346.46562521,0.0001589,2]
[420028457,1775625045362,-184.01842302,0.000159,2]
[420028458,1775625045373,-8436.02256686,0.000159,2]
[420028459,1775625045384,-150.28660628,0.000159,2]
[420028460,1775625045394,-500.0,0.00015903,2]
[420028461,1775625045405,-151.0,0.00015903,2]
[420028462,1775625045416,-6703.71173397,0.00015924,2]
[420028463,1775625045426,-500.0,0.00015958,2]
[420028464,1775625045441,-151.0,0.00015958,2]
[420028465,1775625045454,-277.201,0.00015963,2]
[420028466,1775625045465,-1264.0,0.00015963,2]
[420028467,1775625045476,-151.0,0.00015973,2]
[420028468,1775625045487,-151.0,0.00015973,2]
[420028469,1775625045498,-151.0,0.00015973,2]
[420028470,1775625045509,-151.0,0.00015973,2]
[420028471,1775625045520,-151.0,0.00015973,2]
[420028472,1775625045530,-151.0,0.00015973,2]
[420028473,1775625045541,-151.0,0.00015973,2]
[420028474,1775625045552,-274.91145032,0.00015973,2]
[420028475,1775625045564,-209.44774698,0.00015992,2]
[420028477,1775625045574,-57652.50632696,0.00015999,2]
[420028479,1775625045584,-5800.0,0.00016,2]
[420028481,1775625045595,-573790.2775058,0.00016,2]
[420028483,1775625047002,-3977.17419144,0.00016,2]
[420028484,1775625047384,-756.37918696,0.00014857,2]
[420028485,1775625047396,-644.20590704,0.00014857,2]
[420028486,1775625047425,-4726.92832003,0.00014857,2]
[420028487,1775625047435,-238486.1216345,0.00016,2]
[420028488,1775625047446,-900972.05432119,0.00016,2]
[420028489,1775625047456,-275.383851,0.00016,2]
[420028490,1775625047465,-291.455006,0.00016,2]
[420028491,1775625047475,-151.0,0.00016,2]
[420028492,1775625047484,-275.383851,0.00016,2]
[420028493,1775625047494,-151.0,0.00016,2]
[420028494,1775625047504,-275.383851,0.00016,2]
[420028495,1775625047514,-151.0,0.00016,2]
[420028496,1775625047524,-167.800278,0.00016,2]
[420028497,1775625047533,-275.383851,0.00016,2]
[420028498,1775625047544,-167.800278,0.00016,2]
[420028499,1775625047554,-591.919533,0.00016,2]
[420028500,1775625047564,-151.0,0.00016,2]
[420028501,1775625047573,-167.800278,0.00016,2]
[420028502,1775625047583,-591.919533,0.00016,2]
[420028503,1775625047592,-167.800278,0.00016,2]
[420028504,1775625047603,-591.919533,0.00016,2]
[420028505,1775625047612,-486.879159,0.00016,2]
[420028506,1775625047622,-591.919533,0.00016,2]
[420028507,1775625047632,-486.879159,0.00016,2]
[420028508,1775625047642,-486.879159,0.00016,2]
[420028509,1775625047652,-486.879159,0.00016,2]
[420028510,1775625047661,-158.486598,0.00016,2]
[420028511,1775625047670,-158.486598,0.00016,2]
[420028512,1775625047680,-158.486598,0.00016,2]
[420028513,1775625047690,-158.486598,0.00016,2]
[420028514,1775625047699,-166.285857,0.00016,2]
[420028515,1775625047709,-174.887897,0.00016,2]
[420028516,1775625047719,-166.285857,0.00016,2]
[420028517,1775625047728,-174.887897,0.00016,2]
[420028518,1775625047738,-576.67248,0.00016,2]
[420028519,1775625047747,-166.285857,0.00016,2]
[420028520,1775625047758,-151.0,0.00016,2]
[420028521,1775625047767,-174.887897,0.00016,2]
[420028522,1775625047777,-576.67248,0.00016,2]
[420028523,1775625047786,-166.285857,0.00016,2]
[420028524,1775625047795,-151.0,0.00016,2]
[420028525,1775625047804,-174.887897,0.00016,2]
[420028526,1775625047814,-576.67248,0.00016,2]
[420028527,1775625047824,-151.0,0.00016,2]
[420028528,1775625047833,-151.0,0.00016,2]
[420028529,1775625047844,-576.67248,0.00016,2]
[420028530,1775625047853,-200.428712,0.00016,2]
[420028531,1775625047863,-151.0,0.00016,2]
[420028532,1775625047872,-151.0,0.00016,2]
[420028533,1775625047881,-421.391185,0.00016,2]
[420028534,1775625047891,-216.401494,0.00016,2]
[420028535,1775625047901,-151.0,0.00016,2]
[420028536,1775625047911,-200.428712,0.00016,2]
[420028537,1775625047921,-151.0,0.00016,2]
[420028538,1775625047930,-179.420221,0.00016,2]
[420028539,1775625047940,-421.391185,0.00016,2]
[420028540,1775625047950,-200.428712,0.00016,2]
[420028541,1775625047959,-216.401494,0.00016,2]
[420028542,1775625047969,-151.0,0.00016,2]
[420028543,1775625047979,-421.391185,0.00016,2]
[420028544,1775625047988,-263.354013,0.00016,2]
[420028545,1775625047997,-200.428712,0.00016,2]
[420028546,1775625048007,-216.401494,0.00016,2]
[420028547,1775625048017,-151.0,0.00016,2]
[420028548,1775625048026,-421.391185,0.00016,2]
[420028549,1775625048035,-179.420221,0.00016,2]
[420028550,1775625048045,-263.354013,0.00016,2]
[420028551,1775625048054,-216.401494,0.00016,2]
[420028552,1775625048065,-179.420221,0.00016,2]
[420028553,1775625048075,-263.354013,0.00016,2]
[420028554,1775625048085,-361.197017,0.00016,2]
[420028555,1775625048095,-263.354013,0.00016,2]
[420028556,1775625048104,-266.21298,0.00016,2]
[420028557,1775625048114,-688.562471,0.00016,2]
[420028558,1775625048124,-151.0,0.00016,2]
[420028559,1775625048133,-361.197017,0.00016,2]
[420028560,1775625048143,-266.21298,0.00016,2]
[420028561,1775625048153,-688.562471,0.00016,2]
[420028562,1775625048163,-361.197017,0.00016,2]
[420028563,1775625048173,-266.21298,0.00016,2]
[420028564,1775625048183,-688.562471,0.00016,2]
[420028565,1775625048192,-361.197017,0.00016,2]
[420028566,1775625048201,-266.21298,0.00016,2]
[420028567,1775625048211,-688.562471,0.00016,2]
[420028568,1775625048220,-151.0,0.00016,2]
[420028569,1775625048229,-151.0,0.00016,2]
[420028570,1775625048239,-151.0,0.00016,2]
[420028571,1775625048248,-151.0,0.00016,2]
[420028572,1775625048257,-1783.253125,0.00016,2]
[420028573,1775625048267,-1783.253125,0.00016,2]
[420028574,1775625048277,-151.0,0.00016,2]
[420028575,1775625048287,-1783.253125,0.00016,2]
[420028576,1775625048298,-151.0,0.00016,2]
[420028577,1775625048307,-1783.253125,0.00016,2]
[420028578,1775625048317,-151.0,0.00016,2]
[420028579,1775625048327,-315.297815,0.00016,2]
[420028580,1775625048337,-470.727614,0.00016,2]
[420028581,1775625048347,-170.588254,0.00016,2]
[420028582,1775625048356,-151.0,0.00016,2]
[420028583,1775625048366,-315.297815,0.00016,2]
[420028584,1775625048376,-151.0,0.00016,2]
[420028585,1775625048385,-470.727614,0.00016,2]
[420028586,1775625048395,-315.297815,0.00016,2]
[420028587,1775625048405,-470.727614,0.00016,2]
[420028588,1775625048414,-315.297815,0.00016,2]
[420028589,1775625048423,-470.727614,0.00016,2]
[420028590,1775625048432,-511.805651,0.00016,2]
[420028591,1775625048442,-511.805651,0.00016,2]
[420028592,1775625048452,-174.083759,0.00016,2]
[420028593,1775625048462,-511.805651,0.00016,2]
[420028594,1775625048471,-174.083759,0.00016,2]
[420028595,1775625048481,-152.058502,0.00016,2]
[420028596,1775625048491,-511.805651,0.00016,2]
[420028597,1775625048500,-174.083759,0.00016,2]
[420028598,1775625048510,-174.083759,0.00016,2]
[420028599,1775625048519,-151.0,0.00016,2]
[420028600,1775625048529,-151.0,0.00016,2]